[Event "Titled Tuesday Blitz November 22 Late 2022"]
[White "Polster, Christian"]
[Black "Gerbelli Neto, Eduardo"]
[WhiteFideId "12965081"]
[BlackFideId "2103281"]
[WhiteElo "2209"]
[BlackElo "2178"]
[Result "0-1"]
[Round "06"]
[TimeControl "180+1"]
[Date "2022.11.23"]
[WhiteClock "0:00:01"]
[BlackClock "0:00:05"]

1. e4 {[%clk 0:03:00]}  e5 {[%clk 0:02:59]} 2. Nf3 {[%clk 0:02:59]}  Nc6 {[%clk 0:02:59]} 3. Bc4 {[%clk 0:02:49]}  Nf6 {[%clk 0:02:59]} 4. Ng5 {[%clk 0:02:45]}  d5 {[%clk 0:02:58]} 5. exd5 {[%clk 0:02:46]}  Nd4 {[%clk 0:02:59]} 6. c3 {[%clk 0:02:45]}  b5 {[%clk 0:02:59]} 7. Bf1 {[%clk 0:02:36]}  Nxd5 {[%clk 0:02:58]} 8. cxd4 {[%clk 0:02:34]}  Qxg5 {[%clk 0:02:57]} 9. Nc3 {[%clk 0:02:29]}  exd4 {[%clk 0:02:36]} 10. Bxb5+ {[%clk 0:02:27]}  Kd8 {[%clk 0:02:35]} 11. O-O {[%clk 0:02:07]}  Nxc3 {[%clk 0:02:16]} 12. dxc3 {[%clk 0:01:59]}  Qxb5 {[%clk 0:02:16]} 13. Qxd4+ {[%clk 0:01:57]}  Bd7 {[%clk 0:01:59]} 14. Rd1 {[%clk 0:01:38]}  Kc8 {[%clk 0:01:58]} 15. a4 {[%clk 0:01:31]}  Qc6 {[%clk 0:01:54]} 16. b4 {[%clk 0:01:22]}  f6 {[%clk 0:01:44]} 17. Bf4 {[%clk 0:00:57]}  Bd6 {[%clk 0:01:30]} 18. b5 {[%clk 0:00:38]}  Qc5 {[%clk 0:01:07]} 19. Bxd6 {[%clk 0:00:32]}  Qxd4 {[%clk 0:01:02]} 20. Rxd4 {[%clk 0:00:33]}  cxd6 {[%clk 0:01:02]} 21. Rxd6 {[%clk 0:00:34]}  Kc7 {[%clk 0:01:03]} 22. Ra6 {[%clk 0:00:20]}  Rhe8 {[%clk 0:00:50]} 23. c4 {[%clk 0:00:18]}  Re6 {[%clk 0:00:44]} 24. Ra5 {[%clk 0:00:12]}  Kb6 {[%clk 0:00:39]} 25. Ra6+ {[%clk 0:00:12]}  Kc5 {[%clk 0:00:34]} 26. Ra5 {[%clk 0:00:06]}  Kb4 {[%clk 0:00:33]} 27. Ra6 {[%clk 0:00:07]}  Rxa6 {[%clk 0:00:33]} 28. bxa6 {[%clk 0:00:08]}  Kxc4 {[%clk 0:00:33]} 29. f3 {[%clk 0:00:07]}  Rb8 {[%clk 0:00:31]} 30. Rc1+ {[%clk 0:00:07]}  Kd5 {[%clk 0:00:29]} 31. Rc7 {[%clk 0:00:08]}  Kd6 {[%clk 0:00:24]} 32. Rxa7 {[%clk 0:00:07]}  Kc6 {[%clk 0:00:24]} 33. Kf2 {[%clk 0:00:07]}  g5 {[%clk 0:00:22]} 34. a5 {[%clk 0:00:07]}  h5 {[%clk 0:00:22]} 35. Ke3 {[%clk 0:00:06]}  Rb5 {[%clk 0:00:21]} 36. Ra8 {[%clk 0:00:05]}  Rxa5 {[%clk 0:00:21]} 37. Rf8 {[%clk 0:00:05]}  f5 {[%clk 0:00:19]} 38. Rf6+ {[%clk 0:00:04]}  Kc7 {[%clk 0:00:19]} 39. g3 {[%clk 0:00:03]}  g4 {[%clk 0:00:19]} 40. fxg4 {[%clk 0:00:02]}  hxg4 {[%clk 0:00:20]} 41. Kf4 {[%clk 0:00:03]}  Kb8 {[%clk 0:00:18]} 42. Kg5 {[%clk 0:00:03]}  Ka7 {[%clk 0:00:18]} 43. Kh4 {[%clk 0:00:02]}  Rxa6 {[%clk 0:00:17]} 44. Rf7 {[%clk 0:00:03]}  Rd6 {[%clk 0:00:18]} 45. h3 {[%clk 0:00:03]}  gxh3 {[%clk 0:00:17]} 46. Kxh3 {[%clk 0:00:03]}  Kb6 {[%clk 0:00:18]} 47. Kg2 {[%clk 0:00:04]}  Kc5 {[%clk 0:00:18]} 48. Kf3 {[%clk 0:00:04]}  Kd5 {[%clk 0:00:15]} 49. Rf8 {[%clk 0:00:04]}  Ke5 {[%clk 0:00:15]} 50. Rd8 {[%clk 0:00:03]}  Be6 {[%clk 0:00:14]} 51. Rb8 {[%clk 0:00:03]}  Rd3+ {[%clk 0:00:13]} 52. Kf2 {[%clk 0:00:03]}  Bd5 {[%clk 0:00:13]} 53. Re8+ {[%clk 0:00:02]}  Kd4 {[%clk 0:00:13]} 54. Rf8 {[%clk 0:00:02]}  Rf3+ {[%clk 0:00:14]} 55. Kg2 {[%clk 0:00:01]}  Re3+ {[%clk 0:00:12]} 56. Kf2 {[%clk 0:00:02]}  Re5 {[%clk 0:00:12]} 57. Rf6 {[%clk 0:00:02]}  Ke4 {[%clk 0:00:11]} 58. Rf8 {[%clk 0:00:02]}  Re7 {[%clk 0:00:10]} 59. Rf6 {[%clk 0:00:01]}  Ke5 {[%clk 0:00:09]} 60. Rf8 {[%clk 0:00:01]}  Rc7 {[%clk 0:00:09]} 61. Rd8 {[%clk 0:00:01]}  Rc2+ {[%clk 0:00:09]} 62. Kf1 {[%clk 0:00:02]}  Ke4 {[%clk 0:00:08]} 63. Rf8 {[%clk 0:00:01]}  Ke3 {[%clk 0:00:05]} 64. Rxf5 {[%clk 0:00:01]}  Rc1# {[%clk 0:00:05]} 0-1


[Site "https://www.chess.com"]

[Event "Titled Tuesday Blitz November 22 Late 2022"]
[White "Popilski, Gil"]
[Black "Milchev, Nikolay"]
[WhiteFideId "2809060"]
[BlackFideId "2906090"]
[WhiteElo "2710"]
[BlackElo "2570"]
[Result "1-0"]
[Round "06"]
[TimeControl "180+1"]
[Date "2022.11.23"]
[WhiteClock "0:00:55"]
[BlackClock "0:00:39"]

1. c4 {[%clk 0:03:00]}  Nf6 {[%clk 0:03:00]} 2. Nc3 {[%clk 0:03:00]}  g6 {[%clk 0:03:01]} 3. g3 {[%clk 0:03:00]}  Bg7 {[%clk 0:03:01]} 4. Bg2 {[%clk 0:03:01]}  O-O {[%clk 0:03:02]} 5. Nf3 {[%clk 0:03:00]}  d6 {[%clk 0:03:03]} 6. O-O {[%clk 0:02:59]}  Nc6 {[%clk 0:03:04]} 7. d4 {[%clk 0:03:00]}  a6 {[%clk 0:03:04]} 8. Bf4 {[%clk 0:03:00]}  Rb8 {[%clk 0:03:02]} 9. Rc1 {[%clk 0:02:59]}  Bd7 {[%clk 0:03:01]} 10. d5 {[%clk 0:02:59]}  Na5 {[%clk 0:03:01]} 11. b3 {[%clk 0:02:57]}  c5 {[%clk 0:03:01]} 12. Qd2 {[%clk 0:02:56]}  b5 {[%clk 0:03:01]} 13. Nd1 {[%clk 0:02:46]}  bxc4 {[%clk 0:02:59]} 14. bxc4 {[%clk 0:02:46]}  Rb4 {[%clk 0:02:57]} 15. Ne3 {[%clk 0:02:45]}  Ne4 {[%clk 0:02:55]} 16. Qd3 {[%clk 0:02:44]}  f5 {[%clk 0:02:53]} 17. Ng5 {[%clk 0:02:33]}  Nxg5 {[%clk 0:02:48]} 18. Bxg5 {[%clk 0:02:34]}  Rf7 {[%clk 0:02:44]} 19. h4 {[%clk 0:02:33]}  h6 {[%clk 0:02:37]} 20. Bf4 {[%clk 0:02:32]}  Rb2 {[%clk 0:02:35]} 21. Qa3 {[%clk 0:02:23]}  Qb6 {[%clk 0:02:27]} 22. Nd1 {[%clk 0:02:16]}  Qb4 {[%clk 0:01:57]} 23. Qe3 {[%clk 0:01:56]}  Kh7 {[%clk 0:01:52]} 24. Nxb2 {[%clk 0:01:55]}  Qxb2 {[%clk 0:01:52]} 25. Qd2 {[%clk 0:01:53]}  Qa3 {[%clk 0:01:45]} 26. e4 {[%clk 0:01:52]}  Qa4 {[%clk 0:01:30]} 27. Qe2 {[%clk 0:01:38]}  Bd4 {[%clk 0:01:17]} 28. exf5 {[%clk 0:01:30]}  Bxf5 {[%clk 0:01:17]} 29. h5 {[%clk 0:01:27]}  g5 {[%clk 0:01:15]} 30. Be3 {[%clk 0:01:26]}  Bf6 {[%clk 0:01:06]} 31. Bd2 {[%clk 0:01:25]}  Qxa2 {[%clk 0:01:02]} 32. Be4 {[%clk 0:01:23]}  Bxe4 {[%clk 0:01:00]} 33. Qxe4+ {[%clk 0:01:22]}  Kg8 {[%clk 0:01:01]} 34. Bxa5 {[%clk 0:01:19]}  Qxa5 {[%clk 0:01:01]} 35. Rb1 {[%clk 0:01:15]}  Qc7 {[%clk 0:00:53]} 36. Qg6+ {[%clk 0:01:11]}  Bg7 {[%clk 0:00:53]} 37. Rb3 {[%clk 0:01:10]}  Rf6 {[%clk 0:00:45]} 38. Qe8+ {[%clk 0:01:08]}  Kh7 {[%clk 0:00:46]} 39. Rb8 {[%clk 0:01:06]}  Bf8 {[%clk 0:00:44]} 40. Re1 {[%clk 0:00:56]}  a5 {[%clk 0:00:39]} 41. Re6 {[%clk 0:00:55]} 1-0


[Site "https://www.chess.com"]

[Event "Titled Tuesday Blitz November 22 Late 2022"]
[White "Principe, Gerson"]
[Black "Fernandez Guillen, Ernesto J."]
[WhiteFideId "3804550"]
[BlackFideId "3512428"]
[WhiteElo "2584"]
[BlackElo "2751"]
[Result "0-1"]
[Round "06"]
[TimeControl "180+1"]
[Date "2022.11.23"]
[WhiteClock "0:00:02"]
[BlackClock "0:00:31"]

1. d4 {[%clk 0:03:00]}  Nf6 {[%clk 0:02:53]} 2. Nf3 {[%clk 0:03:00]}  e6 {[%clk 0:02:54]} 3. c4 {[%clk 0:03:00]}  b6 {[%clk 0:02:55]} 4. e3 {[%clk 0:02:58]}  Bb7 {[%clk 0:02:56]} 5. Be2 {[%clk 0:02:56]}  Be7 {[%clk 0:02:57]} 6. O-O {[%clk 0:02:56]}  O-O {[%clk 0:02:57]} 7. b3 {[%clk 0:02:57]}  d5 {[%clk 0:02:58]} 8. Bb2 {[%clk 0:02:57]}  Nbd7 {[%clk 0:02:58]} 9. Nc3 {[%clk 0:02:56]}  a6 {[%clk 0:02:58]} 10. cxd5 {[%clk 0:02:56]}  exd5 {[%clk 0:02:59]} 11. Ne5 {[%clk 0:02:45]}  Bd6 {[%clk 0:02:59]} 12. f4 {[%clk 0:02:44]}  Ne4 {[%clk 0:02:53]} 13. Nxe4 {[%clk 0:02:43]}  dxe4 {[%clk 0:02:54]} 14. Rc1 {[%clk 0:02:32]}  Nf6 {[%clk 0:02:37]} 15. Qd2 {[%clk 0:02:15]}  Nd5 {[%clk 0:02:36]} 16. a3 {[%clk 0:02:16]}  b5 {[%clk 0:02:34]} 17. Nc6 {[%clk 0:02:13]}  Qe8 {[%clk 0:02:32]} 18. Na5 {[%clk 0:02:00]}  Bc8 {[%clk 0:02:31]} 19. Rc2 {[%clk 0:01:52]}  f6 {[%clk 0:02:20]} 20. g3 {[%clk 0:01:46]}  h5 {[%clk 0:02:17]} 21. b4 {[%clk 0:01:23]}  Qg6 {[%clk 0:02:13]} 22. Kh1 {[%clk 0:01:21]}  Bh3 {[%clk 0:02:11]} 23. Rg1 {[%clk 0:01:20]}  Bg4 {[%clk 0:02:12]} 24. Bc1 {[%clk 0:01:11]}  Bxe2 {[%clk 0:02:10]} 25. Qxe2 {[%clk 0:01:12]}  Qg4 {[%clk 0:02:10]} 26. Qxg4 {[%clk 0:01:11]}  hxg4 {[%clk 0:02:11]} 27. Bd2 {[%clk 0:01:09]}  Kf7 {[%clk 0:02:10]} 28. Kg2 {[%clk 0:01:08]}  Rh8 {[%clk 0:02:09]} 29. Nb7 {[%clk 0:01:00]}  Ke6 {[%clk 0:01:53]} 30. Na5 {[%clk 0:00:58]}  Rh3 {[%clk 0:01:49]} 31. Rh1 {[%clk 0:00:53]}  Ne7 {[%clk 0:01:46]} 32. Nc6 {[%clk 0:00:52]}  Nf5 {[%clk 0:01:45]} 33. Rc3 {[%clk 0:00:42]}  Kd5 {[%clk 0:01:24]} 34. Na5 {[%clk 0:00:37]}  Rah8 {[%clk 0:01:23]} 35. Be1 {[%clk 0:00:34]}  g5 {[%clk 0:01:22]} 36. Bf2 {[%clk 0:00:21]}  gxf4 {[%clk 0:01:16]} 37. exf4 {[%clk 0:00:21]}  e3 {[%clk 0:01:17]} 38. Bxe3 {[%clk 0:00:19]}  Nxg3 {[%clk 0:01:16]} 39. hxg3 {[%clk 0:00:15]}  Rxh1 {[%clk 0:01:15]} 40. Bg1 {[%clk 0:00:15]}  R1h6 {[%clk 0:01:13]} 41. Nb3 {[%clk 0:00:14]}  Re8 {[%clk 0:01:09]} 42. Rc2 {[%clk 0:00:14]}  Re1 {[%clk 0:01:04]} 43. Nc1 {[%clk 0:00:13]}  Rh8 {[%clk 0:01:01]} 44. Ne2 {[%clk 0:00:13]}  Re8 {[%clk 0:00:56]} 45. Nc3+ {[%clk 0:00:13]}  Kc4 {[%clk 0:00:45]} 46. Ne4+ {[%clk 0:00:02]}  Kd3 {[%clk 0:00:34]} 47. Nxd6 {[%clk 0:00:03]}  Kxc2 {[%clk 0:00:34]} 48. Nxe8 {[%clk 0:00:03]}  Rxe8 {[%clk 0:00:35]} 49. Kf2 {[%clk 0:00:01]}  c6 {[%clk 0:00:33]} 50. f5 {[%clk 0:00:01]}  Kd3 {[%clk 0:00:32]} 51. Kf1 {[%clk 0:00:02]}  Re2 {[%clk 0:00:31]} 0-1


[Site "https://www.chess.com"]

[Event "Titled Tuesday Blitz November 22 Late 2022"]
[White "Prydun, Andriy"]
[Black "Trent, Lawrence"]
[WhiteFideId "14145898"]
[BlackFideId "408638"]
[WhiteElo "2163"]
[BlackElo "2458"]
[Result "0-1"]
[Round "06"]
[TimeControl "180+1"]
[Date "2022.11.23"]
[WhiteClock "0:00:23"]
[BlackClock "0:01:51"]

1. e4 {[%clk 0:03:00]}  c5 {[%clk 0:02:59]} 2. Nf3 {[%clk 0:03:00]}  Nc6 {[%clk 0:02:59]} 3. c3 {[%clk 0:03:00]}  d5 {[%clk 0:02:58]} 4. exd5 {[%clk 0:02:45]}  Qxd5 {[%clk 0:02:50]} 5. Qb3 {[%clk 0:02:45]}  Nf6 {[%clk 0:02:49]} 6. Qxd5 {[%clk 0:02:39]}  Nxd5 {[%clk 0:02:48]} 7. g3 {[%clk 0:02:23]}  e6 {[%clk 0:02:47]} 8. Be2 {[%clk 0:02:22]}  Be7 {[%clk 0:02:47]} 9. O-O {[%clk 0:02:21]}  O-O {[%clk 0:02:47]} 10. d3 {[%clk 0:02:17]}  e5 {[%clk 0:02:44]} 11. Nbd2 {[%clk 0:02:11]}  f6 {[%clk 0:02:43]} 12. Nc4 {[%clk 0:02:08]}  b6 {[%clk 0:02:42]} 13. Ne3 {[%clk 0:02:08]}  Be6 {[%clk 0:02:41]} 14. Nxd5 {[%clk 0:02:04]}  Bxd5 {[%clk 0:02:39]} 15. Be3 {[%clk 0:02:04]}  Rad8 {[%clk 0:02:39]} 16. Rfd1 {[%clk 0:02:03]}  Bd6 {[%clk 0:02:39]} 17. Nd2 {[%clk 0:01:57]}  f5 {[%clk 0:02:37]} 18. f4 {[%clk 0:01:54]}  exf4 {[%clk 0:02:37]} 19. Bxf4 {[%clk 0:01:54]}  Bxf4 {[%clk 0:02:37]} 20. gxf4 {[%clk 0:01:54]}  Rfe8 {[%clk 0:02:36]} 21. Kf2 {[%clk 0:01:54]}  Rd6 {[%clk 0:02:34]} 22. Rh1 {[%clk 0:01:46]}  Bxh1 {[%clk 0:02:30]} 23. Rxh1 {[%clk 0:01:47]}  Ne7 {[%clk 0:02:29]} 24. Nc4 {[%clk 0:01:46]}  Rh6 {[%clk 0:02:28]} 25. Bf3 {[%clk 0:01:40]}  Ng6 {[%clk 0:02:26]} 26. Bd5+ {[%clk 0:01:40]}  Kh8 {[%clk 0:02:26]} 27. Nd6 {[%clk 0:01:39]}  Rf8 {[%clk 0:02:25]} 28. Nf7+ {[%clk 0:01:32]}  Rxf7 {[%clk 0:02:26]} 29. Bxf7 {[%clk 0:01:33]}  Nxf4 {[%clk 0:02:26]} 30. d4 {[%clk 0:01:30]}  cxd4 {[%clk 0:02:26]} 31. cxd4 {[%clk 0:01:30]}  g5 {[%clk 0:02:26]} 32. h4 {[%clk 0:01:18]}  Kg7 {[%clk 0:02:24]} 33. Bc4 {[%clk 0:01:13]}  g4 {[%clk 0:02:17]} 34. Re1 {[%clk 0:00:46]}  Rxh4 {[%clk 0:02:16]} 35. Re7+ {[%clk 0:00:45]}  Kf6 {[%clk 0:02:16]} 36. Rxa7 {[%clk 0:00:45]}  Rh3 {[%clk 0:02:10]} 37. Rb7 {[%clk 0:00:42]}  Rf3+ {[%clk 0:02:10]} 38. Kg1 {[%clk 0:00:42]}  h5 {[%clk 0:02:10]} 39. Rxb6+ {[%clk 0:00:41]}  Kg5 {[%clk 0:02:10]} 40. d5 {[%clk 0:00:38]}  Kh4 {[%clk 0:01:59]} 41. d6 {[%clk 0:00:34]}  Nh3+ {[%clk 0:01:56]} 42. Kg2 {[%clk 0:00:30]}  Rf2+ {[%clk 0:01:56]} 43. Kh1 {[%clk 0:00:30]}  g3 {[%clk 0:01:53]} 44. Bd5 {[%clk 0:00:23]}  Rh2# {[%clk 0:01:51]} 0-1


[Site "https://www.chess.com"]

[Event "Titled Tuesday Blitz November 22 Late 2022"]
[White "Riff, Vincent"]
[Black "Bogaudinov, Rushan"]
[WhiteFideId "617776"]
[BlackFideId "4129288"]
[WhiteElo "2369"]
[BlackElo "1997"]
[Result "1-0"]
[Round "06"]
[TimeControl "180+1"]
[Date "2022.11.23"]
[WhiteClock "0:00:50"]
[BlackClock "0:00:20"]

1. d4 {[%clk 0:02:59]}  Nf6 {[%clk 0:02:59]} 2. Nf3 {[%clk 0:02:59]}  g6 {[%clk 0:02:59]} 3. c4 {[%clk 0:02:57]}  Bg7 {[%clk 0:02:58]} 4. Nc3 {[%clk 0:02:58]}  d5 {[%clk 0:02:58]} 5. cxd5 {[%clk 0:02:57]}  Nxd5 {[%clk 0:02:58]} 6. Na4 {[%clk 0:02:58]}  O-O {[%clk 0:02:57]} 7. e4 {[%clk 0:02:57]}  Nf6 {[%clk 0:02:57]} 8. Nc3 {[%clk 0:02:56]}  b6 {[%clk 0:02:51]} 9. Bd3 {[%clk 0:02:54]}  Bb7 {[%clk 0:02:51]} 10. O-O {[%clk 0:02:54]}  Nbd7 {[%clk 0:02:40]} 11. Re1 {[%clk 0:02:49]}  Ne8 {[%clk 0:02:22]} 12. Bg5 {[%clk 0:02:44]}  f6 {[%clk 0:02:20]} 13. Bh4 {[%clk 0:02:42]}  c5 {[%clk 0:02:18]} 14. Rc1 {[%clk 0:02:34]}  Rc8 {[%clk 0:02:12]} 15. a4 {[%clk 0:02:21]}  Kh8 {[%clk 0:02:07]} 16. d5 {[%clk 0:02:20]}  Nd6 {[%clk 0:02:03]} 17. Nb5 {[%clk 0:02:17]}  a6 {[%clk 0:01:57]} 18. Nxd6 {[%clk 0:02:14]}  exd6 {[%clk 0:01:57]} 19. Qe2 {[%clk 0:02:07]}  Ra8 {[%clk 0:01:53]} 20. Nd2 {[%clk 0:01:54]}  Ne5 {[%clk 0:01:37]} 21. f4 {[%clk 0:01:51]}  Nxd3 {[%clk 0:01:36]} 22. Qxd3 {[%clk 0:01:51]}  Qe8 {[%clk 0:01:32]} 23. Nc4 {[%clk 0:01:48]}  Qd8 {[%clk 0:01:27]} 24. f5 {[%clk 0:01:26]}  b5 {[%clk 0:01:23]} 25. Ne3 {[%clk 0:01:22]}  Qb6 {[%clk 0:01:12]} 26. fxg6 {[%clk 0:01:16]}  hxg6 {[%clk 0:01:12]} 27. e5 {[%clk 0:01:17]}  f5 {[%clk 0:01:00]} 28. e6 {[%clk 0:01:14]}  c4 {[%clk 0:00:58]} 29. Qe2 {[%clk 0:01:14]}  Bxd5 {[%clk 0:00:54]} 30. Bf2 {[%clk 0:01:13]}  Bd4 {[%clk 0:00:43]} 31. Nxd5 {[%clk 0:01:11]}  Bxf2+ {[%clk 0:00:43]} 32. Qxf2 {[%clk 0:01:12]}  Qxf2+ {[%clk 0:00:39]} 33. Kxf2 {[%clk 0:01:12]}  Rae8 {[%clk 0:00:32]} 34. axb5 {[%clk 0:01:08]}  axb5 {[%clk 0:00:32]} 35. Ra1 {[%clk 0:01:08]}  f4 {[%clk 0:00:33]} 36. Nc7 {[%clk 0:00:57]}  Re7 {[%clk 0:00:27]} 37. Nxb5 {[%clk 0:00:56]}  d5 {[%clk 0:00:26]} 38. Nd4 {[%clk 0:00:53]}  Rb8 {[%clk 0:00:24]} 39. Re2 {[%clk 0:00:52]}  Kg7 {[%clk 0:00:22]} 40. Nc6 {[%clk 0:00:52]}  Rbe8 {[%clk 0:00:20]} 41. Nxe7 {[%clk 0:00:52]}  Rxe7 {[%clk 0:00:21]} 42. Rd1 {[%clk 0:00:52]}  Kf6 {[%clk 0:00:20]} 43. Rxd5 {[%clk 0:00:52]}  g5 {[%clk 0:00:20]} 44. Rd7 {[%clk 0:00:51]}  Rxe6 {[%clk 0:00:19]} 45. Rxe6+ {[%clk 0:00:50]}  Kxe6 {[%clk 0:00:20]} 46. Rc7 {[%clk 0:00:50]} 1-0


[Site "https://www.chess.com"]

[Event "Titled Tuesday Blitz November 22 Late 2022"]
[White "Rodriguez Santiago, Jaime"]
[Black "Reprintsev, Alexander"]
[WhiteFideId "3100898"]
[BlackFideId "14100541"]
[WhiteElo "2025"]
[BlackElo "2230"]
[Result "0-1"]
[Round "06"]
[TimeControl "180+1"]
[Date "2022.11.23"]
[WhiteClock "0:00:43"]
[BlackClock "0:01:40"]

1. c4 {[%clk 0:03:00]}  e5 {[%clk 0:02:58]} 2. Nc3 {[%clk 0:03:00]}  Nc6 {[%clk 0:02:58]} 3. g3 {[%clk 0:03:01]}  Bc5 {[%clk 0:02:57]} 4. Bg2 {[%clk 0:02:59]}  Nf6 {[%clk 0:02:57]} 5. Nf3 {[%clk 0:02:59]}  d6 {[%clk 0:02:54]} 6. e3 {[%clk 0:02:53]}  Qe7 {[%clk 0:02:50]} 7. O-O {[%clk 0:02:33]}  e4 {[%clk 0:02:49]} 8. Ng5 {[%clk 0:02:30]}  Bf5 {[%clk 0:02:49]} 9. f3 {[%clk 0:02:28]}  exf3 {[%clk 0:02:48]} 10. Rxf3 {[%clk 0:02:14]}  Bd3 {[%clk 0:02:46]} 11. b3 {[%clk 0:02:12]}  h6 {[%clk 0:02:44]} 12. Nh3 {[%clk 0:02:10]}  g5 {[%clk 0:02:36]} 13. Nf2 {[%clk 0:02:02]}  Bg6 {[%clk 0:02:31]} 14. Bb2 {[%clk 0:01:59]}  Ne5 {[%clk 0:02:25]} 15. Rxf6 {[%clk 0:01:32]}  Qxf6 {[%clk 0:02:24]} 16. d4 {[%clk 0:01:33]}  O-O-O {[%clk 0:02:16]} 17. Nd5 {[%clk 0:01:30]}  Qe6 {[%clk 0:02:01]} 18. dxe5 {[%clk 0:01:08]}  dxe5 {[%clk 0:02:01]} 19. Qf3 {[%clk 0:01:05]}  c6 {[%clk 0:01:57]} 20. Nc3 {[%clk 0:01:01]}  f5 {[%clk 0:01:54]} 21. e4 {[%clk 0:00:58]}  Rhf8 {[%clk 0:01:46]} 22. exf5 {[%clk 0:00:49]}  Rxf5 {[%clk 0:01:40]} 23. Bh3 {[%clk 0:00:43]}  Rxf3 {[%clk 0:01:40]} 0-1


[Site "https://www.chess.com"]

[Event "Titled Tuesday Blitz November 22 Late 2022"]
[White "Roque Sola, Gisela"]
[Black "Besedes, Danilo"]
[WhiteFideId "5120241"]
[BlackFideId "946796"]
[WhiteElo "1961"]
[BlackElo "2352"]
[Result "0-1"]
[Round "06"]
[TimeControl "180+1"]
[Date "2022.11.23"]
[WhiteClock "0:00:03"]
[BlackClock "0:00:11"]

1. e4 {[%clk 0:03:00]}  d6 {[%clk 0:02:57]} 2. d4 {[%clk 0:02:59]}  e5 {[%clk 0:02:51]} 3. Be3 {[%clk 0:02:50]}  exd4 {[%clk 0:02:49]} 4. Bxd4 {[%clk 0:02:49]}  Nf6 {[%clk 0:02:47]} 5. Nd2 {[%clk 0:02:48]}  Nc6 {[%clk 0:02:48]} 6. Bc3 {[%clk 0:02:48]}  g6 {[%clk 0:02:40]} 7. Bc4 {[%clk 0:02:24]}  Bg7 {[%clk 0:02:34]} 8. Ngf3 {[%clk 0:02:22]}  O-O {[%clk 0:02:35]} 9. O-O {[%clk 0:02:20]}  Re8 {[%clk 0:02:35]} 10. Re1 {[%clk 0:02:11]}  Bg4 {[%clk 0:02:35]} 11. h3 {[%clk 0:02:09]}  Bd7 {[%clk 0:02:35]} 12. Ng5 {[%clk 0:02:06]}  Re7 {[%clk 0:02:26]} 13. Qf3 {[%clk 0:02:03]}  h6 {[%clk 0:02:20]} 14. Bxf6 {[%clk 0:01:52]}  hxg5 {[%clk 0:02:10]} 15. Bxe7 {[%clk 0:01:37]}  Qxe7 {[%clk 0:02:11]} 16. Bd3 {[%clk 0:01:21]}  Bxb2 {[%clk 0:02:00]} 17. Rab1 {[%clk 0:01:18]}  Bc3 {[%clk 0:02:01]} 18. Red1 {[%clk 0:01:14]}  b6 {[%clk 0:02:00]} 19. e5 {[%clk 0:00:48]}  Bxe5 {[%clk 0:01:54]} 20. Bb5 {[%clk 0:00:47]}  Qe8 {[%clk 0:01:49]} 21. Nc4 {[%clk 0:00:43]}  a6 {[%clk 0:01:36]} 22. Bxc6 {[%clk 0:00:33]}  Bxc6 {[%clk 0:01:37]} 23. Qd3 {[%clk 0:00:31]}  Bg7 {[%clk 0:01:29]} 24. Ne3 {[%clk 0:00:30]}  Qe4 {[%clk 0:01:17]} 25. Qxe4 {[%clk 0:00:21]}  Bxe4 {[%clk 0:01:18]} 26. Rb4 {[%clk 0:00:20]}  Bb7 {[%clk 0:01:12]} 27. c4 {[%clk 0:00:19]}  Re8 {[%clk 0:01:07]} 28. Rb3 {[%clk 0:00:19]}  Re4 {[%clk 0:01:04]} 29. f3 {[%clk 0:00:17]}  Re8 {[%clk 0:00:58]} 30. Kf2 {[%clk 0:00:17]}  a5 {[%clk 0:00:55]} 31. Nd5 {[%clk 0:00:17]}  Bxd5 {[%clk 0:00:53]} 32. cxd5 {[%clk 0:00:18]}  Re7 {[%clk 0:00:51]} 33. Re3 {[%clk 0:00:18]}  Kf8 {[%clk 0:00:45]} 34. Rxe7 {[%clk 0:00:17]}  Kxe7 {[%clk 0:00:46]} 35. Ke3 {[%clk 0:00:17]}  Kd7 {[%clk 0:00:45]} 36. g4 {[%clk 0:00:16]}  Be5 {[%clk 0:00:44]} 37. Ke4 {[%clk 0:00:17]}  b5 {[%clk 0:00:40]} 38. Rb1 {[%clk 0:00:15]}  b4 {[%clk 0:00:35]} 39. Rc1 {[%clk 0:00:12]}  Bc3 {[%clk 0:00:29]} 40. Kd3 {[%clk 0:00:11]}  c6 {[%clk 0:00:25]} 41. Kc4 {[%clk 0:00:11]}  Kc7 {[%clk 0:00:25]} 42. a3 {[%clk 0:00:11]}  Kb6 {[%clk 0:00:23]} 43. dxc6 {[%clk 0:00:11]}  Kxc6 {[%clk 0:00:23]} 44. axb4 {[%clk 0:00:12]}  axb4 {[%clk 0:00:23]} 45. Re1 {[%clk 0:00:11]}  d5+ {[%clk 0:00:23]} 46. Kb3 {[%clk 0:00:11]}  Kd6 {[%clk 0:00:24]} 47. Re8 {[%clk 0:00:09]}  d4 {[%clk 0:00:22]} 48. Kc4 {[%clk 0:00:09]}  Kd7 {[%clk 0:00:20]} 49. Ra8 {[%clk 0:00:08]}  Ke6 {[%clk 0:00:20]} 50. Ra6+ {[%clk 0:00:08]}  Ke5 {[%clk 0:00:20]} 51. Ra7 {[%clk 0:00:08]}  f6 {[%clk 0:00:20]} 52. Rf7 {[%clk 0:00:08]}  Ke6 {[%clk 0:00:16]} 53. Rg7 {[%clk 0:00:08]}  Ke5 {[%clk 0:00:13]} 54. Rxg6 {[%clk 0:00:08]}  Ke6 {[%clk 0:00:14]} 55. Rg8 {[%clk 0:00:06]}  Ke5 {[%clk 0:00:13]} 56. Rf8 {[%clk 0:00:06]}  Ke6 {[%clk 0:00:13]} 57. Kd3 {[%clk 0:00:05]}  b3 {[%clk 0:00:12]} 58. Rb8 {[%clk 0:00:04]}  b2 {[%clk 0:00:12]} 59. Ke4 {[%clk 0:00:04]}  Kd6 {[%clk 0:00:12]} 60. Kf5 {[%clk 0:00:03]}  d3 {[%clk 0:00:11]} 0-1


[Site "https://www.chess.com"]

[Event "Titled Tuesday Blitz November 22 Late 2022"]
[White "Rosen, Eric"]
[Black "Walentukiewicz, Michal"]
[WhiteFideId "2032562"]
[BlackFideId "1126903"]
[WhiteElo "2362"]
[BlackElo "2026"]
[Result "1-0"]
[Round "06"]
[TimeControl "180+1"]
[Date "2022.11.23"]
[WhiteClock "0:00:03"]
[BlackClock "0:00:36"]

1. d4 {[%clk 0:03:00]}  g6 {[%clk 0:02:58]} 2. e4 {[%clk 0:03:00]}  Bg7 {[%clk 0:02:58]} 3. Nf3 {[%clk 0:03:01]}  c5 {[%clk 0:02:54]} 4. dxc5 {[%clk 0:03:01]}  Qa5+ {[%clk 0:02:52]} 5. c3 {[%clk 0:02:58]}  Qxc5 {[%clk 0:02:52]} 6. Na3 {[%clk 0:02:57]}  Nf6 {[%clk 0:02:49]} 7. e5 {[%clk 0:02:30]}  Ng4 {[%clk 0:02:48]} 8. Qe2 {[%clk 0:02:16]}  Nxe5 {[%clk 0:02:47]} 9. Be3 {[%clk 0:02:12]}  Nxf3+ {[%clk 0:02:45]} 10. Qxf3 {[%clk 0:02:12]}  Qa5 {[%clk 0:02:25]} 11. Nc4 {[%clk 0:01:41]}  Qc7 {[%clk 0:02:24]} 12. h4 {[%clk 0:01:35]}  Nc6 {[%clk 0:02:23]} 13. h5 {[%clk 0:01:34]}  O-O {[%clk 0:02:22]} 14. hxg6 {[%clk 0:01:03]}  hxg6 {[%clk 0:02:22]} 15. Qh3 {[%clk 0:01:00]}  f5 {[%clk 0:02:11]} 16. Qh7+ {[%clk 0:00:36]}  Kf7 {[%clk 0:02:11]} 17. Rh6 {[%clk 0:00:35]}  Ne5 {[%clk 0:02:04]} 18. Nxe5+ {[%clk 0:00:32]}  Qxe5 {[%clk 0:02:03]} 19. Qxg6+ {[%clk 0:00:32]}  Kg8 {[%clk 0:02:01]} 20. Qh7+ {[%clk 0:00:28]}  Kf7 {[%clk 0:02:01]} 21. Qg6+ {[%clk 0:00:21]}  Kg8 {[%clk 0:02:01]} 22. Rh5 {[%clk 0:00:20]}  Rf6 {[%clk 0:01:43]} 23. Qe8+ {[%clk 0:00:19]}  Rf8 {[%clk 0:01:43]} 24. Qg6 {[%clk 0:00:20]}  Rf6 {[%clk 0:01:44]} 25. Qh7+ {[%clk 0:00:20]}  Kf7 {[%clk 0:01:44]} 26. O-O-O {[%clk 0:00:19]}  e6 {[%clk 0:01:31]} 27. Bd4 {[%clk 0:00:13]}  Qf4+ {[%clk 0:01:32]} 28. Kb1 {[%clk 0:00:13]}  Rg6 {[%clk 0:01:27]} 29. Rh4 {[%clk 0:00:09]}  Qg5 {[%clk 0:01:19]} 30. Be2 {[%clk 0:00:09]}  Kf8 {[%clk 0:00:53]} 31. Rh5 {[%clk 0:00:04]}  Qxg2 {[%clk 0:00:51]} 32. Bxg7+ {[%clk 0:00:03]}  Rxg7 {[%clk 0:00:51]} 33. Qh8+ {[%clk 0:00:02]}  Ke7 {[%clk 0:00:48]} 34. Rh7 {[%clk 0:00:02]}  Rxh7 {[%clk 0:00:45]} 35. Qxh7+ {[%clk 0:00:03]}  Kd8 {[%clk 0:00:46]} 36. Bb5 {[%clk 0:00:03]}  Qe4+ {[%clk 0:00:42]} 37. Ka1 {[%clk 0:00:03]}  d5 {[%clk 0:00:36]} 38. Rg1 {[%clk 0:00:03]} 1-0


[Site "https://www.chess.com"]